lending/lending_fUSD_20250819
["ID","MTS","AMOUNT","RATE_DAILY","PERIOD"]
[380264820,1755630394179,-400.0,0.00022999,30]
[380264821,1755630394231,-589.48,0.00022999,30]
[380264822,1755630394291,-400.0,0.00022999,30]
[380264823,1755630394343,-1357.11,0.00022999,30]
[380264824,1755630394394,-4943.09,0.00022999,30]
[380264825,1755630394443,-1090.36,0.00022999,30]
[380264826,1755630394492,-2132.45,0.00022999,30]
[380264827,1755630394537,-1620.06,0.00022999,30]
[380264828,1755630394585,-1043.12,0.00022999,30]
[380264829,1755630394635,-400.0,0.00022999,30]
[380264830,1755630394682,-400.0,0.00022999,30]
[380264831,1755630394726,-2036.5,0.00022999,30]
[380264832,1755630394772,-2160.01,0.00022999,30]
[380264833,1755630394816,-400.0,0.00022999,30]
[380264834,1755630394862,-733.36,0.00022999,30]
[380264835,1755630394915,-6197.97,0.00022999,30]
[380264836,1755630394968,-400.0,0.00022999,30]
[380264837,1755630395025,-400.0,0.00022999,30]
[380264838,1755630395074,-7066.74,0.00022999,30]
[380264839,1755630395122,-2269.73,0.00022999,30]
[380264840,1755630395170,-1567.0,0.00022999,30]
[380264841,1755630395217,-1859.59,0.00022999,30]
[380264842,1755630395264,-400.0,0.00022999,30]
[380264843,1755630395317,-400.0,0.00022999,30]
[380264844,1755630395374,-2339.92,0.00022999,30]
[380264845,1755630395426,-400.0,0.00022999,30]
[380264846,1755630395474,-400.0,0.00022999,30]
[380264847,1755630395520,-400.0,0.00022999,30]
[380264848,1755630395566,-3558.39,0.00022999,30]
[380264849,1755630395610,-1713.64,0.00022999,30]
[380264850,1755630395655,-530.76,0.00022999,30]
[380264851,1755630395698,-400.0,0.00022999,30]
[380264852,1755630395743,-212.02104404,0.00023,30]
[380264853,1755630395786,-458.43483364,0.00023,30]
[380264854,1755630395830,-661.18,0.00023273,30]
[380264855,1755630395873,-897.36,0.00023273,30]
[380264856,1755630395916,-400.0,0.00023273,30]
[380264857,1755630395962,-400.0,0.00023273,30]
[380264858,1755630396007,-1779.17,0.00023273,30]
[380264859,1755630396051,-868.82,0.00023273,30]
[380264860,1755630396364,-400.0,0.00023273,30]
[380264861,1755630396417,-931.81,0.00023273,30]
[380264862,1755630396465,-400.0,0.00023273,30]
[380264863,1755630396510,-400.0,0.00023273,30]
[380264864,1755630396553,-1278.53,0.00023273,30]
[380264865,1755630396599,-400.0,0.00023273,30]
[380264866,1755630396644,-922.03,0.00023273,30]
[380264867,1755630396688,-1998.66,0.00023273,30]
[380264868,1755630396736,-523.74,0.00023273,30]
[380264869,1755630396780,-1077.73,0.00023273,30]
[380264870,1755630396825,-400.0,0.00023273,30]
[380264871,1755630396873,-1083.11,0.00023273,30]
[380264872,1755630396923,-424.48,0.00023273,30]
[380264873,1755630396970,-1726.78,0.00023273,30]
[380264874,1755630397015,-400.0,0.00023273,30]
[380264875,1755630397061,-400.0,0.00023273,30]
[380264876,1755630397107,-573.46,0.00023273,30]
[380264877,1755630397155,-405.71,0.00023273,30]
[380264878,1755630397208,-400.0,0.00023273,30]
[380264879,1755630397260,-1010.67,0.00023273,30]
[380264880,1755630397311,-1099.82,0.00023273,30]
[380264881,1755630397360,-1556.93,0.00023273,30]
[380264882,1755630397407,-400.0,0.00023273,30]
[380264883,1755630397451,-400.0,0.00023273,30]
[380264884,1755630397498,-434.09,0.00023273,30]
[380264885,1755630397541,-400.0,0.00023273,30]
[380264886,1755630397588,-1791.08,0.00023273,30]
[380264887,1755630397631,-1835.72,0.00023273,30]
[380264888,1755630397675,-1178.09,0.00023273,30]
[380264889,1755630397717,-400.0,0.00023273,30]
[380264890,1755630397764,-1032.27,0.00023273,30]
[380264891,1755630397810,-405.59,0.00023273,30]
[380264892,1755630397854,-657.7,0.00023273,30]
[380264893,1755630397898,-2773.84,0.00023273,30]
[380264894,1755630397944,-1415.69,0.00023273,30]
[380264895,1755630397990,-2616.85,0.00023273,30]
[380264896,1755630398037,-569.65,0.00023273,30]
[380264897,1755630398084,-461.18,0.00023273,30]
[380264898,1755630398134,-407.36,0.00023273,30]
[380264899,1755630398184,-438.1,0.00023273,30]
[380264900,1755630398233,-400.0,0.00023273,30]
[380264901,1755630398284,-609.41,0.00023273,30]
[380264902,1755630398336,-523.45,0.00023273,30]
[380264903,1755630398390,-1883.4,0.00023273,30]
[380264904,1755630398444,-2291.88,0.00023273,30]
[380264905,1755630398499,-1113.47,0.00023273,30]
[380264906,1755630398552,-2659.67,0.00023273,30]
[380264907,1755630398605,-1973.84,0.00023273,30]
[380264908,1755630398657,-1609.3,0.00023273,30]
[380264909,1755630398708,-400.0,0.00023273,30]
[380264910,1755630398757,-2474.93,0.00023273,30]
[380264911,1755630398806,-400.0,0.00023273,30]
[380264912,1755630398856,-580.89,0.00023273,30]
[380264913,1755630398905,-503.96,0.00023273,30]
[380264914,1755630398955,-1390.04,0.00023273,30]
[380264915,1755630399006,-1375.63,0.00023273,30]
[380264916,1755630399056,-2391.62,0.00023273,30]
[380264917,1755630399107,-829.42,0.00023273,30]
[380264918,1755630399158,-400.0,0.00023273,30]
[380264919,1755630399213,-2483.35,0.00023273,30]
[380264920,1755630399266,-400.0,0.00023273,30]
[380264921,1755630399321,-2313.87,0.00023273,30]
[380264922,1755630399374,-567.71,0.00023273,30]
[380264923,1755630399428,-976.66,0.00023273,30]
[380264924,1755630399482,-402.22,0.00023273,30]
[380264925,1755630399536,-188.74014327,0.00023273,30]
[380264926,1755630399590,-400.0,0.00023273,30]
[380264927,1755630399643,-444.55,0.00023273,30]
[380264928,1755630399695,-400.0,0.00023273,30]
[380264929,1755630399757,-2523.31,0.00023273,30]
[380264930,1755630399815,-3390.74,0.00023273,30]
[380264931,1755630399870,-400.0,0.00023273,30]
[380264932,1755630399924,-400.0,0.00023273,30]
[380264933,1755630399983,-1613.2,0.00023273,30]
[380264934,1755630400042,-655.88,0.00023273,30]
[380264935,1755630400100,-1683.94,0.00023273,30]
[380264936,1755630400155,-2173.68,0.00023273,30]
[380264937,1755630400216,-2265.47,0.00023273,30]
[380264938,1755630400272,-400.0,0.00023273,30]
[380264939,1755630400328,-2568.38,0.00023273,30]
[380264940,1755630400385,-400.0,0.00023273,30]
[380264941,1755630400438,-646.96,0.00023273,30]
[380264942,1755630400494,-1093.07,0.00023273,30]
[380264943,1755630400547,-1066.76,0.00023273,30]
[380264944,1755630400603,-1739.56,0.00023273,30]
[380264945,1755630400655,-2666.99,0.00023273,30]
[380264946,1755630400707,-1769.99,0.00023273,30]
[380264947,1755630400762,-400.0,0.00023273,30]
[380264948,1755630400815,-1163.48,0.00023273,30]
[380264949,1755630400867,-750.6,0.00023273,30]
[380264950,1755630400918,-400.0,0.00023273,30]
[380264951,1755630400969,-400.0,0.00023273,30]
[380264952,1755630401021,-983.97,0.00023273,30]
[380264953,1755630401075,-1275.26,0.00023273,30]
[380264954,1755630401126,-1304.3,0.00023273,30]
[380264955,1755630401177,-1417.75,0.00023273,30]
[380264956,1755630401230,-1826.41,0.00023273,30]
[380264957,1755630401282,-1984.55,0.00023273,30]
[380264958,1755630401335,-475.91,0.00023273,30]
[380264959,1755630401381,-2197.7,0.00023273,30]
[380264960,1755630401425,-441.25,0.00023273,30]
[380264961,1755630401469,-400.0,0.00023273,30]
[380264962,1755630401513,-2376.92,0.00023273,30]
[380264963,1755630401559,-400.0,0.00023273,30]
[380264964,1755630401620,-1698.15,0.00023273,30]
[380264965,1755630401667,-1243.9,0.00023273,30]
[380264966,1755630401714,-2729.11,0.00023273,30]
[380264967,1755630401757,-400.0,0.00023273,30]
[380264968,1755630401799,-400.0,0.00023273,30]
[380264969,1755630401846,-400.0,0.00023273,30]
[380264970,1755630401890,-514.92,0.00023273,30]
[380264971,1755630401935,-400.0,0.00023273,30]
[380264972,1755630401980,-2659.25,0.00023273,30]
[380264973,1755630402025,-2276.56,0.00023273,30]
[380264974,1755630402315,-474.19,0.00023273,30]
[380264975,1755630402364,-2376.31,0.00023273,30]
[380264976,1755630402408,-400.0,0.00023273,30]
[380264977,1755630402452,-1207.05,0.00023273,30]
[380264978,1755630402496,-400.0,0.00023273,30]
[380264979,1755630402542,-400.0,0.00023273,30]
[380264980,1755630402584,-400.0,0.00023273,30]
[380264981,1755630402633,-345.55,0.00023273,30]
[380264982,1755630402680,-633.48,0.00023273,30]
[380264983,1755630402723,-680.06,0.00023273,30]
[380264984,1755630402764,-523.52,0.00023273,30]
[380264985,1755630402807,-400.0,0.00023273,30]
[380264986,1755630402850,-514.84,0.00023273,30]
[380264987,1755630402892,-2485.42,0.00023273,30]
[380264988,1755630402935,-400.0,0.00023273,30]
[380264989,1755630402976,-2070.68,0.00023273,30]
[380264990,1755630403031,-2109.71,0.00023273,30]
[380264991,1755630403079,-765.55,0.00023273,30]
[380264992,1755630403127,-400.0,0.00023273,30]
[380264993,1755630403176,-400.0,0.00023273,30]
[380264994,1755630403228,-2380.79,0.00023273,30]
[380264995,1755630403278,-400.0,0.00023273,30]
[380264996,1755630403329,-609.66,0.00023273,30]
[380264997,1755630403376,-400.0,0.00023273,30]
[380264998,1755630403421,-400.0,0.00023273,30]
[380264999,1755630403468,-2214.91,0.00023273,30]
[380265000,1755630403512,-400.0,0.00023273,30]
[380265001,1755630403554,-1455.64,0.00023273,30]
[380265002,1755630403599,-812.07,0.00023273,30]
[380265003,1755630403641,-2318.11,0.00023273,30]
[380265004,1755630403684,-624.94,0.00023273,30]
[380265005,1755630403727,-735.73,0.00023273,30]
[380265006,1755630403769,-2543.44,0.00023273,30]
[380265007,1755630403810,-400.0,0.00023273,30]
[380265008,1755630403853,-475.29,0.00023273,30]
[380265009,1755630403898,-400.0,0.00023273,30]
[380265010,1755630403943,-480.84,0.00023273,30]
[380265011,1755630403996,-1267.25,0.00023273,30]
[380265012,1755630404045,-1790.38,0.00023273,30]
[380265013,1755630404095,-1978.17,0.00023273,30]
[380265014,1755630404146,-991.43,0.00023273,30]
[380265015,1755630404197,-2403.23,0.00023273,30]
[380265016,1755630404249,-457.25,0.00023273,30]
[380265017,1755630404301,-400.0,0.00023273,30]
[380265018,1755630404353,-435.28,0.00023273,30]
[380265019,1755630404404,-400.0,0.00023273,30]
[380265020,1755630404453,-600.44,0.00023273,30]
[380265021,1755630404499,-739.64,0.00023273,30]
[380265022,1755630404544,-706.07,0.00023273,30]
[380265023,1755630404589,-752.31,0.00023273,30]
[380265024,1755630404638,-840.02,0.00023273,30]
[380265025,1755630404685,-2897.61,0.00023273,30]
[380265026,1755630404732,-1691.99,0.00023273,30]
[380265027,1755630404779,-1037.15,0.00023273,30]
[380265028,1755630404827,-400.0,0.00023273,30]
[380265029,1755630404875,-1106.8,0.00023273,30]
[380265030,1755630404931,-400.0,0.00023273,30]
[380265031,1755630404985,-2337.75,0.00023273,30]
[380265032,1755630405043,-634.7,0.00023273,30]
[380265033,1755630405096,-2040.3,0.00023273,30]
[380265034,1755630405146,-400.0,0.00023273,30]
[380265035,1755630405194,-1042.17,0.00023273,30]
[380265036,1755630405246,-933.24,0.00023273,30]
[380265037,1755630405303,-400.0,0.00023273,30]
[380265038,1755630405358,-774.29,0.00023273,30]
[380265039,1755630405409,-513.97,0.00023273,30]
[380265040,1755630405457,-3303.11,0.00023273,30]
[380265041,1755630405507,-2536.84,0.00023273,30]
[380265042,1755630405556,-2383.23,0.00023273,30]
[380265043,1755630405608,-400.0,0.00023273,30]
[380265044,1755630405658,-3032.63,0.00023273,30]
[380265045,1755630405706,-400.0,0.00023273,30]
[380265046,1755630405767,-400.0,0.00023273,30]
[380265047,1755630405828,-3033.29,0.00023273,30]
[380265048,1755630405883,-421.43,0.00023273,30]
[380265049,1755630405937,-1129.12,0.00023273,30]
[380265050,1755630405987,-1791.81,0.00023273,30]
[380265051,1755630406042,-2573.42,0.00023273,30]
[380265052,1755630406095,-674.85,0.00023273,30]
[380265053,1755630406148,-988.84,0.00023273,30]
[380265054,1755630406201,-2431.24,0.00023273,30]
[380265055,1755630406257,-440.14,0.00023273,30]
[380265056,1755630406315,-925.02,0.00023273,30]
[380265057,1755630406371,-1825.21,0.00023273,30]
[380265058,1755630406427,-2152.71,0.00023273,30]
[380265059,1755630406480,-400.0,0.00023273,30]
[380265060,1755630406534,-691.76,0.00023273,30]
[380265061,1755630406587,-1838.62,0.00023273,30]
[380265062,1755630406642,-2269.1,0.00023273,30]
[380265063,1755630406695,-400.0,0.00023273,30]
[380265064,1755630406750,-445.2,0.00023273,30]
[380265065,1755630406800,-1032.92,0.00023273,30]
[380265066,1755630406854,-1019.74,0.00023273,30]
[380265067,1755630406902,-400.0,0.00023273,30]
[380265068,1755630406952,-400.0,0.00023273,30]
[380265069,1755630406999,-835.03,0.00023273,30]
[380265070,1755630407047,-400.0,0.00023273,30]
[380265071,1755630407096,-2130.51,0.00023273,30]
[380265072,1755630407149,-618.96,0.00023273,30]
[380265073,1755630407207,-609.14,0.00023273,30]
[380265074,1755630407265,-400.0,0.00023273,30]
[380265075,1755630407321,-731.3,0.00023273,30]
[380265076,1755630407379,-400.0,0.00023273,30]
[380265077,1755630407435,-400.0,0.00023273,30]
[380265078,1755630407490,-2286.59,0.00023273,30]
[380265079,1755630407549,-2177.09,0.00023273,30]
[380265080,1755630407601,-1491.89,0.00023273,30]
[380265081,1755630407651,-1639.78,0.00023273,30]
[380265082,1755630407701,-1553.88,0.00023273,30]
[380265083,1755630407757,-2141.31,0.00023273,30]
[380265084,1755630407808,-1445.88,0.00023273,30]
[380265085,1755630407859,-1704.68,0.00023273,30]
[380265086,1755630407913,-400.0,0.00023273,30]
[380265087,1755630407976,-400.0,0.00023273,30]
[380265088,1755630408031,-400.0,0.00023273,30]
[380265089,1755630408493,-824.76,0.00023273,30]
[380265090,1755630408545,-1457.27,0.00023273,30]
[380265091,1755630408596,-808.44,0.00023273,30]
[380265092,1755630408646,-521.21,0.00023273,30]
[380265093,1755630408695,-2318.32,0.00023273,30]
[380265094,1755630408743,-575.21,0.00023273,30]
[380265095,1755630408788,-2610.91,0.00023273,30]
[380265096,1755630408832,-400.0,0.00023273,30]
[380265097,1755630408881,-2082.96,0.00023273,30]
[380265098,1755630408930,-400.0,0.00023273,30]
[380265099,1755630408978,-400.0,0.00023273,30]
[380265100,1755630409026,-400.0,0.00023273,30]
[380265101,1755630409074,-400.0,0.00023273,30]
[380265102,1755630409125,-741.66,0.00023273,30]
[380265103,1755630409174,-1641.49,0.00023273,30]
[380265104,1755630409223,-2230.22,0.00023273,30]
[380265105,1755630409268,-400.0,0.00023273,30]
[380265106,1755630409317,-1614.82,0.00023273,30]
[380265107,1755630409366,-1259.81,0.00023273,30]
[380265108,1755630409416,-601.76,0.00023273,30]
[380265109,1755630409467,-400.0,0.00023273,30]
[380265110,1755630409517,-400.0,0.00023273,30]
[380265111,1755630409565,-1764.26,0.00023273,30]
[380265112,1755630409615,-520.65,0.00023273,30]
[380265113,1755630409660,-807.58,0.00023273,30]
[380265114,1755630409707,-2852.86,0.00023273,30]
[380265115,1755630409755,-2595.97,0.00023273,30]
[380265116,1755630409800,-1250.58,0.00023273,30]
[380265117,1755630409845,-759.93,0.00023273,30]
[380265118,1755630409892,-2576.77,0.00023273,30]
[380265119,1755630409942,-400.0,0.00023273,30]
[380265120,1755630410001,-400.0,0.00023273,30]
[380265121,1755630410055,-2990.03,0.00023273,30]
[380265122,1755630410111,-400.0,0.00023273,30]
[380265123,1755630410167,-969.64,0.00023273,30]
[380265124,1755630410225,-874.65,0.00023273,30]
[380265125,1755630410281,-1990.94,0.00023273,30]
[380265126,1755630410336,-1275.47,0.00023273,30]
[380265127,1755630410388,-400.0,0.00023273,30]
[380265128,1755630410440,-1880.76,0.00023273,30]
[380265129,1755630410490,-403.59,0.00023273,30]
[380265130,1755630410537,-400.0,0.00023273,30]
[380265131,1755630410583,-400.0,0.00023273,30]
[380265132,1755630410628,-2825.31,0.00023273,30]
[380265133,1755630410677,-400.0,0.00023273,30]
[380265134,1755630410731,-1171.85,0.00023273,30]
[380265135,1755630410781,-400.0,0.00023273,30]
[380265136,1755630410833,-1915.83,0.00023273,30]
[380265137,1755630410884,-400.0,0.00023273,30]
[380265138,1755630410936,-1032.99,0.00023273,30]
[380265139,1755630410989,-1115.27,0.00023273,30]
[380265140,1755630411042,-2003.39,0.00023273,30]
[380265141,1755630411094,-400.0,0.00023273,30]
[380265142,1755630411148,-400.0,0.00023273,30]
[380265143,1755630411200,-400.0,0.00023273,30]
[380265144,1755630411253,-773.28,0.00023273,30]
[380265145,1755630411309,-2415.35,0.00023273,30]
[380265146,1755630411363,-400.0,0.00023273,30]
[380265147,1755630411414,-400.0,0.00023273,30]
[380265148,1755630411462,-1093.1,0.00023273,30]
[380265149,1755630411513,-1694.65,0.00023273,30]
[380265150,1755630411564,-727.99,0.00023273,30]
[380265151,1755630411613,-1683.21,0.00023273,30]
[380265152,1755630411662,-3052.27,0.00023273,30]
[380265153,1755630411709,-690.52,0.00023273,30]
[380265154,1755630411760,-2031.05,0.00023273,30]
[380265155,1755630411806,-400.0,0.00023273,30]
[380265156,1755630411854,-721.89,0.00023273,30]
[380265157,1755630411906,-400.0,0.00023273,30]
[380265158,1755630411963,-2545.67,0.00023273,30]
[380265159,1755630412019,-1864.55,0.00023273,30]
[380265160,1755630412065,-400.0,0.00023273,30]
[380265161,1755630412118,-1540.32,0.00023273,30]
[380265162,1755630412170,-933.6,0.00023273,30]
[380265163,1755630412222,-400.0,0.00023273,30]
[380265164,1755630412278,-405.22453722,0.00023273,30]
[380265165,1755630412332,-2194.24,0.00023273,30]
[380265166,1755630412385,-377.10933643,0.00023273,30]
[380265167,1755630412436,-1493.31,0.00023273,30]
[380265168,1755630412481,-5130.58,0.00023273,30]
[380265169,1755630412522,-1903.48,0.00023273,30]
[380265170,1755630412568,-667.4,0.00023273,30]
[380265171,1755630412618,-400.0,0.00023273,30]
[380265172,1755630412663,-1549.09,0.00023273,30]
[380265173,1755630412705,-1016.3,0.00023273,30]
[380265174,1755630412751,-400.0,0.00023273,30]
[380265175,1755630412794,-2999.76,0.00023273,30]
[380265176,1755630412835,-1945.59,0.00023273,30]
[380265177,1755630412877,-400.0,0.00023273,30]
[380265178,1755630412923,-1712.23,0.00023273,30]
[380265179,1755630412968,-447.13,0.00023273,30]
[380265180,1755630413017,-1543.97,0.00023273,30]
[380265181,1755630413062,-400.0,0.00023273,30]
[380265182,1755630413109,-400.0,0.00023273,30]
[380265183,1755630413157,-1237.06,0.00023273,30]
[380265184,1755630413203,-834.9,0.00023273,30]
[380265185,1755630413255,-341.87996133,0.00023273,30]
[380265186,1755630413302,-1537.57,0.00023273,30]
[380265187,1755630413346,-1759.02,0.00023273,30]
[380265188,1755630413390,-2463.0,0.00023273,30]
[380265189,1755630413434,-400.0,0.00023273,30]
[380265190,1755630413477,-400.0,0.00023273,30]
[380265191,1755630413519,-2651.29,0.00023273,30]
[380265192,1755630413562,-2296.47,0.00023273,30]
[380265193,1755630413610,-716.49,0.00023273,30]
[380265194,1755630413652,-1180.21,0.00023273,30]
[380265195,1755630413694,-989.74,0.00023273,30]
[380265196,1755630413736,-2445.69,0.00023273,30]
[380265197,1755630413777,-2438.63,0.00023273,30]
[380265198,1755630413817,-2251.53,0.00023273,30]
[380265199,1755630413857,-2228.98,0.00023273,30]
[380265200,1755630413900,-400.0,0.00023273,30]
[380265201,1755630413941,-1000.0,0.00023273,30]
[380265202,1755630413985,-1354.08,0.00023273,30]
[380265203,1755630414287,-632.7,0.00023273,30]
[380265204,1755630414342,-400.0,0.00023273,30]
[380265205,1755630414393,-476.92,0.00023273,30]
[380265206,1755630414441,-2116.49,0.00023273,30]
[380265207,1755630414487,-1944.84,0.00023273,30]
[380265208,1755630414531,-641.51,0.00023273,30]
[380265209,1755630414577,-1498.84,0.00023273,30]
[380265210,1755630414622,-2221.8,0.00023273,30]
[380265211,1755630414669,-400.0,0.00023273,30]
[380265212,1755630414713,-795.25,0.00023273,30]
[380265213,1755630414760,-5673.57,0.00023273,30]
[380265214,1755630414802,-1077.46,0.00023273,30]
[380265215,1755630414844,-1067.22,0.00023273,30]
[380265216,1755630414890,-893.12,0.00023273,30]
[380265217,1755630414934,-400.0,0.00023273,30]
[380265218,1755630414982,-400.0,0.00023273,30]
[380265219,1755630415033,-400.0,0.00023273,30]
[380265220,1755630415088,-9783.42,0.00023273,30]
[380265221,1755630415140,-400.0,0.00023273,30]
[380265222,1755630415189,-1557.8,0.00023273,30]
[380265223,1755630415238,-994.07,0.00023273,30]
[380265224,1755630415286,-1869.67,0.00023273,30]
[380265225,1755630415334,-555.34,0.00023273,30]
[380265226,1755630415381,-400.0,0.00023273,30]
[380265227,1755630415426,-919.17,0.00023273,30]
[380265228,1755630415469,-1190.15,0.00023273,30]
[380265229,1755630415513,-400.0,0.00023273,30]
[380265230,1755630415555,-400.0,0.00023273,30]
[380265231,1755630415603,-400.0,0.00023273,30]
[380265232,1755630415646,-1892.75,0.00023273,30]
[380265233,1755630415688,-2088.94,0.00023273,30]
[380265234,1755630415732,-731.12,0.00023273,30]
[380265235,1755630415773,-1711.77,0.00023273,30]
[380265236,1755630415814,-624.5,0.00023273,30]
[380265237,1755630415856,-2888.69,0.00023273,30]
[380265238,1755630415901,-400.0,0.00023273,30]
[380265239,1755630415943,-1019.51,0.00023273,30]
[380265240,1755630415987,-5639.35,0.00023273,30]
[380265241,1755630416031,-400.0,0.00023273,30]
[380265242,1755630416079,-1894.77,0.00023273,30]
[380265243,1755630416123,-400.0,0.00023273,30]
[380265244,1755630416166,-2878.14,0.00023273,30]
[380265245,1755630416210,-477.1,0.00023273,30]
[380265246,1755630416260,-850.07,0.00023273,30]
[380265247,1755630416312,-2507.54,0.00023273,30]
[380265248,1755630416363,-2131.76,0.00023273,30]
[380265249,1755630416411,-1145.45,0.00023273,30]
[380265250,1755630416457,-1865.24,0.00023273,30]
[380265251,1755630416500,-314.18470919,0.00023273,30]
[380265252,1755630416544,-3262.7,0.00023273,30]
[380265253,1755630416586,-400.0,0.00023273,30]
[380265254,1755630416629,-1645.93,0.00023273,30]
[380265255,1755630416671,-947.97,0.00023273,30]
[380265256,1755630416712,-503.59,0.00023273,30]
[380265257,1755630416757,-400.0,0.00023273,30]
[380265258,1755630416801,-2074.6,0.00023273,30]
[380265259,1755630416848,-18366.46,0.00023273,30]
[380265260,1755630416895,-400.0,0.00023273,30]
[380265261,1755630416938,-851.26,0.00023273,30]
[380265262,1755630416982,-1599.27,0.00023273,30]
[380265263,1755630417025,-1672.1,0.00023273,30]
[380265264,1755630417069,-437.88,0.00023273,30]
[380265265,1755630417114,-400.0,0.00023273,30]
[380265266,1755630417162,-1900.77,0.00023273,30]
[380265267,1755630417213,-1607.24,0.00023273,30]
[380265268,1755630417266,-400.0,0.00023273,30]
[380265269,1755630417318,-400.0,0.00023273,30]
[380265270,1755630417368,-400.0,0.00023273,30]
[380265271,1755630417414,-482.8,0.00023273,30]
[380265272,1755630417458,-497.34,0.00023273,30]
[380265273,1755630417501,-400.0,0.00023273,30]
[380265274,1755630417544,-1429.79,0.00023273,30]
[380265275,1755630417588,-1844.33,0.00023273,30]
[380265276,1755630417631,-453.0,0.00023273,30]
[380265277,1755630417675,-400.0,0.00023273,30]
[380265278,1755630417718,-1765.89,0.00023273,30]
[380265279,1755630417764,-1008.25,0.00023273,30]
[380265280,1755630417806,-400.0,0.00023273,30]
[380265281,1755630417849,-556.2,0.00023273,30]
[380265282,1755630417893,-1739.11,0.00023273,30]
[380265283,1755630417939,-400.0,0.00023273,30]
[380265284,1755630417984,-400.0,0.00023273,30]
[380265285,1755630418029,-400.0,0.00023273,30]
[380265286,1755630418074,-411.04,0.00023273,30]
[380265287,1755630418118,-438.9,0.00023273,30]
[380265288,1755630418166,-400.0,0.00023273,30]
[380265289,1755630418216,-400.0,0.00023273,30]
[380265290,1755630418265,-1431.31,0.00023273,30]
[380265291,1755630418314,-400.0,0.00023273,30]
[380265292,1755630418360,-6432.42,0.00023273,30]
[380265293,1755630418406,-2398.79,0.00023273,30]
[380265294,1755630418449,-400.0,0.00023273,30]
[380265295,1755630418491,-2238.16,0.00023273,30]
[380265296,1755630418533,-400.0,0.00023273,30]
[380265297,1755630418578,-400.0,0.00023273,30]
[380265298,1755630418620,-1089.29,0.00023273,30]
[380265299,1755630418663,-1716.64,0.00023273,30]
[380265300,1755630418704,-584.89,0.00023273,30]
[380265301,1755630418745,-698.53,0.00023273,30]
[380265302,1755630418788,-605.66,0.00023273,30]
[380265303,1755630418830,-400.0,0.00023273,30]
[380265304,1755630418873,-400.0,0.00023273,30]
[380265305,1755630418918,-400.0,0.00023273,30]
[380265306,1755630418962,-400.0,0.00023273,30]
[380265307,1755630419007,-1616.94,0.00023273,30]
[380265308,1755630419056,-391.68910191,0.00023273,30]
[380265309,1755630419104,-400.0,0.00023273,30]
[380265310,1755630419153,-461.41,0.00023273,30]
[380265311,1755630419200,-400.0,0.00023273,30]
[380265312,1755630419244,-1632.1,0.00023273,30]
[380265313,1755630419290,-4364.61,0.00023273,30]
[380265314,1755630419552,-579.14,0.00023273,30]
[380265315,1755630419609,-400.0,0.00023273,30]
[380265316,1755630419662,-400.0,0.00023273,30]
[380265317,1755630420019,-599.52,0.00023273,30]
[380265318,1755630420081,-876.4,0.00023273,30]
[380265319,1755630420140,-1023.1,0.00023273,30]